[Event "Titled Tuesday Blitz April 4 Early 2023"]
[White "Lymar, Vladislav"]
[Black "Pakleza, Zbigniew"]
[WhiteFideId "14162180"]
[BlackFideId "1119290"]
[WhiteElo "2234"]
[BlackElo "2410"]
[Result "0-1"]
[Round "03"]
[TimeControl "180+2"]
[Date "2023.04.04"]
[WhiteClock "0:00:04"]
[BlackClock "0:00:05"]

1. e4 {[%clk 0:01:58]}  d6 {[%clk 0:03:00]} 2. d4 {[%clk 0:01:57]}  Nf6 {[%clk 0:03:01]} 3. Nc3 {[%clk 0:01:57]}  c6 {[%clk 0:03:01]} 4. a4 {[%clk 0:01:57]}  Nbd7 {[%clk 0:03:01]} 5. g3 {[%clk 0:01:56]}  e5 {[%clk 0:03:02]} 6. Bg2 {[%clk 0:01:57]}  Be7 {[%clk 0:03:02]} 7. Nge2 {[%clk 0:01:57]}  b6 {[%clk 0:03:03]} 8. h3 {[%clk 0:01:57]}  a6 {[%clk 0:03:03]} 9. d5 {[%clk 0:01:57]}  Bb7 {[%clk 0:03:03]} 10. dxc6 {[%clk 0:01:56]}  Bxc6 {[%clk 0:03:04]} 11. O-O {[%clk 0:01:56]}  Nc5 {[%clk 0:03:00]} 12. f3 {[%clk 0:01:52]}  d5 {[%clk 0:02:52]} 13. b4 {[%clk 0:01:50]}  Ne6 {[%clk 0:02:44]} 14. exd5 {[%clk 0:01:40]}  Nxd5 {[%clk 0:02:45]} 15. Nxd5 {[%clk 0:01:40]}  Bxd5 {[%clk 0:02:43]} 16. Qe1 {[%clk 0:01:31]}  O-O {[%clk 0:02:30]} 17. Bb2 {[%clk 0:01:32]}  Qc7 {[%clk 0:02:18]} 18. Qc3 {[%clk 0:01:27]}  Rac8 {[%clk 0:02:08]} 19. Qxc7 {[%clk 0:01:26]}  Rxc7 {[%clk 0:02:08]} 20. Bxe5 {[%clk 0:01:22]}  Rxc2 {[%clk 0:02:08]} 21. Nd4 {[%clk 0:01:23]}  Nxd4 {[%clk 0:01:50]} 22. Bxd4 {[%clk 0:01:24]}  b5 {[%clk 0:01:49]} 23. axb5 {[%clk 0:01:12]}  axb5 {[%clk 0:01:50]} 24. Rfb1 {[%clk 0:01:12]}  h5 {[%clk 0:01:42]} 25. Ra7 {[%clk 0:01:11]}  Re8 {[%clk 0:01:28]} 26. Re1 {[%clk 0:01:10]}  Be6 {[%clk 0:01:28]} 27. Rb7 {[%clk 0:01:02]}  Bxb4 {[%clk 0:01:22]} 28. Rb1 {[%clk 0:00:48]}  Bd6 {[%clk 0:01:21]} 29. R7xb5 {[%clk 0:00:47]}  Bxg3 {[%clk 0:01:18]} 30. Rxh5 {[%clk 0:00:48]}  Rd8 {[%clk 0:01:10]} 31. Be5 {[%clk 0:00:31]}  Rdd2 {[%clk 0:00:43]} 32. Bf1 {[%clk 0:00:27]}  Bf2+ {[%clk 0:00:31]} 33. Kh1 {[%clk 0:00:25]}  f6 {[%clk 0:00:32]} 34. Bf4 {[%clk 0:00:21]}  Rd4 {[%clk 0:00:27]} 35. Bh2 {[%clk 0:00:13]}  Bd5 {[%clk 0:00:22]} 36. Bg2 {[%clk 0:00:12]}  Kf7 {[%clk 0:00:14]} 37. Bg1 {[%clk 0:00:08]}  Kg6 {[%clk 0:00:06]} 38. Rh8 {[%clk 0:00:06]}  Rdd2 {[%clk 0:00:05]} 39. Bxf2 {[%clk 0:00:06]}  Rxf2 {[%clk 0:00:06]} 40. Rg1 {[%clk 0:00:06]}  Kf5 {[%clk 0:00:06]} 41. Rh5+ {[%clk 0:00:06]}  g5 {[%clk 0:00:06]} 42. Kh2 {[%clk 0:00:04]}  Bxf3 {[%clk 0:00:06]} 43. Rh8 {[%clk 0:00:04]}  Rxg2+ {[%clk 0:00:05]} 44. Rxg2 {[%clk 0:00:04]}  Rxg2+ {[%clk 0:00:06]} 45. Kh1 {[%clk 0:00:05]}  Rd2+ {[%clk 0:00:07]} 46. Kg1 {[%clk 0:00:05]}  Kf4 {[%clk 0:00:07]} 47. Rd8 {[%clk 0:00:04]}  Rxd8 {[%clk 0:00:05]} 0-1


[Site "https://www.chess.com"]

[Event "Titled Tuesday Blitz April 4 Early 2023"]
[White "Aitbayev, Aslan"]
[Black "Ordekalog"]
[WhiteFideId "13704613"]
[WhiteElo "2325"]
[BlackElo "2566"]
[Result "1-0"]
[Round "03"]
[TimeControl "180+2"]
[Date "2023.04.04"]
[WhiteClock "0:00:03"]
[BlackClock "0:00:01"]

1. Nf3 {[%clk 0:03:00]}  d5 {[%clk 0:02:59]} 2. c4 {[%clk 0:03:00]}  e6 {[%clk 0:02:58]} 3. b3 {[%clk 0:02:58]}  c5 {[%clk 0:02:58]} 4. e3 {[%clk 0:02:53]}  Nf6 {[%clk 0:02:57]} 5. Bb2 {[%clk 0:02:53]}  Nc6 {[%clk 0:02:56]} 6. cxd5 {[%clk 0:02:53]}  exd5 {[%clk 0:02:56]} 7. Bb5 {[%clk 0:02:52]}  Bd6 {[%clk 0:02:54]} 8. O-O {[%clk 0:02:51]}  O-O {[%clk 0:02:54]} 9. d4 {[%clk 0:02:38]}  Bg4 {[%clk 0:02:50]} 10. dxc5 {[%clk 0:02:37]}  Bxc5 {[%clk 0:02:49]} 11. Nbd2 {[%clk 0:02:33]}  a6 {[%clk 0:02:42]} 12. Bxc6 {[%clk 0:02:32]}  bxc6 {[%clk 0:02:42]} 13. Rc1 {[%clk 0:02:29]}  Nd7 {[%clk 0:02:35]} 14. Qc2 {[%clk 0:02:11]}  Rc8 {[%clk 0:02:23]} 15. Qc3 {[%clk 0:01:57]}  f6 {[%clk 0:02:18]} 16. Nd4 {[%clk 0:01:53]}  Qe7 {[%clk 0:02:09]} 17. h3 {[%clk 0:01:49]}  Bh5 {[%clk 0:01:58]} 18. Qd3 {[%clk 0:01:43]}  Ne5 {[%clk 0:01:34]} 19. Qc2 {[%clk 0:01:27]}  Bb4 {[%clk 0:01:27]} 20. a3 {[%clk 0:00:58]}  Bg6 {[%clk 0:01:23]} 21. Qd1 {[%clk 0:00:44]}  Bd6 {[%clk 0:01:14]} 22. N2f3 {[%clk 0:00:37]}  Nd3 {[%clk 0:01:12]} 23. Rxc6 {[%clk 0:00:11]}  Nxb2 {[%clk 0:01:08]} 24. Qd2 {[%clk 0:00:12]}  Nd3 {[%clk 0:01:06]} 25. Nh4 {[%clk 0:00:12]}  Rxc6 {[%clk 0:00:42]} 26. Nxg6 {[%clk 0:00:12]}  hxg6 {[%clk 0:00:38]} 27. Nxc6 {[%clk 0:00:12]}  Qe4 {[%clk 0:00:37]} 28. f3 {[%clk 0:00:09]}  Qe8 {[%clk 0:00:37]} 29. Na5 {[%clk 0:00:06]}  Qb5 {[%clk 0:00:26]} 30. a4 {[%clk 0:00:05]}  Qb4 {[%clk 0:00:27]} 31. Qxd3 {[%clk 0:00:04]}  Qxa5 {[%clk 0:00:27]} 32. Rd1 {[%clk 0:00:05]}  Rd8 {[%clk 0:00:25]} 33. Qxg6 {[%clk 0:00:05]}  Qb6 {[%clk 0:00:20]} 34. Qd3 {[%clk 0:00:04]}  Bc5 {[%clk 0:00:19]} 35. Kh1 {[%clk 0:00:04]}  Bxe3 {[%clk 0:00:17]} 36. a5 {[%clk 0:00:04]}  Qe6 {[%clk 0:00:14]} 37. b4 {[%clk 0:00:03]}  Ba7 {[%clk 0:00:10]} 38. b5 {[%clk 0:00:03]}  axb5 {[%clk 0:00:10]} 39. Qxb5 {[%clk 0:00:04]}  Bb8 {[%clk 0:00:08]} 40. a6 {[%clk 0:00:04]}  Qe5 {[%clk 0:00:08]} 41. Kg1 {[%clk 0:00:04]}  Qh2+ {[%clk 0:00:06]} 42. Kf1 {[%clk 0:00:02]}  Qe5 {[%clk 0:00:05]} 43. Qe2 {[%clk 0:00:01]}  Qd6 {[%clk 0:00:04]} 44. Qd3 {[%clk 0:00:01]}  Qe6 {[%clk 0:00:01]} 45. Re1 {[%clk 0:00:02]}  Qf7 {[%clk 0:00:02]} 46. Rb1 {[%clk 0:00:02]}  Qc7 {[%clk 0:00:02]} 47. Rb7 {[%clk 0:00:02]}  Qc1+ {[%clk 0:00:02]} 48. Kf2 {[%clk 0:00:03]}  Qc8 {[%clk 0:00:01]} 49. Qg6 {[%clk 0:00:03]} 1-0


[Site "https://www.chess.com"]

[Event "Titled Tuesday Blitz April 4 Early 2023"]
[White "Milikow, Yoav"]
[Black "Buksa, Nataliya"]
[WhiteFideId "2822237"]
[BlackFideId "14123622"]
[WhiteElo "2410"]
[BlackElo "2316"]
[Result "1-0"]
[Round "03"]
[TimeControl "180+2"]
[Date "2023.04.04"]
[WhiteClock "0:00:14"]
[BlackClock "0:00:05"]

1. d4 {[%clk 0:02:58]}  d5 {[%clk 0:02:59]} 2. c4 {[%clk 0:02:58]}  e6 {[%clk 0:02:59]} 3. Nc3 {[%clk 0:02:57]}  a6 {[%clk 0:03:00]} 4. cxd5 {[%clk 0:02:56]}  exd5 {[%clk 0:03:01]} 5. Qb3 {[%clk 0:02:57]}  c6 {[%clk 0:02:57]} 6. e4 {[%clk 0:02:47]}  dxe4 {[%clk 0:02:56]} 7. Bc4 {[%clk 0:02:46]}  Bd6 {[%clk 0:02:44]} 8. Bxf7+ {[%clk 0:02:39]}  Kf8 {[%clk 0:02:44]} 9. Nge2 {[%clk 0:02:28]}  Nf6 {[%clk 0:02:34]} 10. Be6 {[%clk 0:02:22]}  b5 {[%clk 0:02:14]} 11. Bg5 {[%clk 0:02:19]}  Be7 {[%clk 0:02:03]} 12. Nf4 {[%clk 0:02:14]}  Nbd7 {[%clk 0:01:30]} 13. Bd5 {[%clk 0:01:23]}  Nb6 {[%clk 0:01:05]} 14. Bxc6 {[%clk 0:01:21]}  Ra7 {[%clk 0:01:06]} 15. O-O {[%clk 0:01:19]}  Nc4 {[%clk 0:01:02]} 16. Rad1 {[%clk 0:01:14]}  h6 {[%clk 0:00:59]} 17. Ng6+ {[%clk 0:01:12]}  Kg8 {[%clk 0:00:57]} 18. Bxf6 {[%clk 0:01:09]}  Bxf6 {[%clk 0:00:53]} 19. Bd5+ {[%clk 0:01:09]}  Kh7 {[%clk 0:00:50]} 20. Bxe4 {[%clk 0:01:06]}  Re8 {[%clk 0:00:45]} 21. Ne5+ {[%clk 0:01:03]}  Kg8 {[%clk 0:00:44]} 22. Nc6 {[%clk 0:00:59]}  Qd7 {[%clk 0:00:36]} 23. Nxa7 {[%clk 0:00:55]}  Qxa7 {[%clk 0:00:36]} 24. Bd5+ {[%clk 0:00:56]}  Kh8 {[%clk 0:00:36]} 25. Bxc4 {[%clk 0:00:55]}  bxc4 {[%clk 0:00:37]} 26. Qxc4 {[%clk 0:00:56]}  Bf5 {[%clk 0:00:34]} 27. Qc5 {[%clk 0:00:44]}  Qxc5 {[%clk 0:00:28]} 28. dxc5 {[%clk 0:00:45]}  Rc8 {[%clk 0:00:28]} 29. Rd5 {[%clk 0:00:27]}  Be6 {[%clk 0:00:28]} 30. Rd6 {[%clk 0:00:27]}  Bc4 {[%clk 0:00:28]} 31. Rc1 {[%clk 0:00:25]}  Bg5 {[%clk 0:00:27]} 32. Rc2 {[%clk 0:00:22]}  Re8 {[%clk 0:00:17]} 33. g3 {[%clk 0:00:20]}  Re1+ {[%clk 0:00:16]} 34. Kg2 {[%clk 0:00:20]}  Be7 {[%clk 0:00:09]} 35. Rd4 {[%clk 0:00:19]}  Bf1+ {[%clk 0:00:08]} 36. Kf3 {[%clk 0:00:19]}  Bxc5 {[%clk 0:00:08]} 37. Re4 {[%clk 0:00:20]}  Ra1 {[%clk 0:00:08]} 38. Nd5 {[%clk 0:00:16]}  Bd6 {[%clk 0:00:08]} 39. Rc6 {[%clk 0:00:16]}  Bf8 {[%clk 0:00:03]} 40. Re8 {[%clk 0:00:15]}  Kg8 {[%clk 0:00:03]} 41. Rcc8 {[%clk 0:00:14]}  Rxa2 {[%clk 0:00:04]} 42. Rxf8+ {[%clk 0:00:15]}  Kh7 {[%clk 0:00:05]} 43. Rc7 {[%clk 0:00:13]}  Rxb2 {[%clk 0:00:04]} 44. Rff7 {[%clk 0:00:12]}  Kg6 {[%clk 0:00:04]} 45. Rxg7+ {[%clk 0:00:12]}  Kf5 {[%clk 0:00:04]} 46. Ne3+ {[%clk 0:00:12]}  Ke6 {[%clk 0:00:05]} 47. Rge7+ {[%clk 0:00:12]}  Kd6 {[%clk 0:00:05]} 48. Nxf1 {[%clk 0:00:13]}  a5 {[%clk 0:00:05]} 49. Ne3 {[%clk 0:00:14]}  Rb3 {[%clk 0:00:04]} 50. Kf4 {[%clk 0:00:14]}  a4 {[%clk 0:00:05]} 51. Nf5+ {[%clk 0:00:13]}  Kd5 {[%clk 0:00:05]} 52. Red7+ {[%clk 0:00:13]}  Ke6 {[%clk 0:00:05]} 53. Rd6# {[%clk 0:00:14]} 1-0


[Site "https://www.chess.com"]

[Event "Titled Tuesday Blitz April 4 Early 2023"]
[White "Zhao, Jun"]
[Black "Deng, Henry"]
[WhiteFideId "8602522"]
[BlackFideId "30965454"]
[WhiteElo "2547"]
[BlackElo "2474"]
[Result "1-0"]
[Round "03"]
[TimeControl "180+2"]
[Date "2023.04.04"]
[WhiteClock "0:00:27"]
[BlackClock "0:00:16"]

1. Nf3 {[%clk 0:02:56]}  d5 {[%clk 0:02:58]} 2. d4 {[%clk 0:02:56]}  Nf6 {[%clk 0:02:57]} 3. c4 {[%clk 0:02:56]}  c6 {[%clk 0:02:58]} 4. Nc3 {[%clk 0:02:55]}  e6 {[%clk 0:02:57]} 5. e3 {[%clk 0:02:55]}  Nbd7 {[%clk 0:02:55]} 6. Qc2 {[%clk 0:02:55]}  Bd6 {[%clk 0:02:54]} 7. b3 {[%clk 0:02:55]}  O-O {[%clk 0:02:51]} 8. Be2 {[%clk 0:02:56]}  b6 {[%clk 0:02:45]} 9. Bb2 {[%clk 0:02:56]}  Bb7 {[%clk 0:02:45]} 10. O-O {[%clk 0:02:56]}  Qe7 {[%clk 0:02:44]} 11. Rfe1 {[%clk 0:02:56]}  Rfe8 {[%clk 0:02:44]} 12. Rad1 {[%clk 0:02:54]}  Rad8 {[%clk 0:02:44]} 13. Bf1 {[%clk 0:02:54]}  h6 {[%clk 0:02:32]} 14. e4 {[%clk 0:02:44]}  dxe4 {[%clk 0:02:31]} 15. Nxe4 {[%clk 0:02:45]}  Nxe4 {[%clk 0:02:31]} 16. Qxe4 {[%clk 0:02:36]}  Nf6 {[%clk 0:02:31]} 17. Qc2 {[%clk 0:02:12]}  Qc7 {[%clk 0:02:18]} 18. c5 {[%clk 0:01:50]}  Be7 {[%clk 0:02:12]} 19. Ne5 {[%clk 0:01:44]}  Nd5 {[%clk 0:02:08]} 20. Qe4 {[%clk 0:01:40]}  Bf6 {[%clk 0:01:59]} 21. Bd3 {[%clk 0:01:34]}  g6 {[%clk 0:01:37]} 22. Qg4 {[%clk 0:01:32]}  h5 {[%clk 0:01:29]} 23. Qg3 {[%clk 0:01:31]}  Bg7 {[%clk 0:01:29]} 24. h3 {[%clk 0:01:26]}  Qe7 {[%clk 0:01:25]} 25. Rc1 {[%clk 0:01:22]}  Bh6 {[%clk 0:01:19]} 26. cxb6 {[%clk 0:01:13]}  axb6 {[%clk 0:00:56]} 27. Nxc6 {[%clk 0:01:00]}  Bxc6 {[%clk 0:00:56]} 28. Rxc6 {[%clk 0:01:01]}  Rc8 {[%clk 0:00:48]} 29. Rxc8 {[%clk 0:00:58]}  Rxc8 {[%clk 0:00:45]} 30. Bc4 {[%clk 0:00:52]}  Qd7 {[%clk 0:00:34]} 31. a4 {[%clk 0:00:50]}  Bg7 {[%clk 0:00:31]} 32. Qf3 {[%clk 0:00:43]}  Nb4 {[%clk 0:00:27]} 33. Qc3 {[%clk 0:00:40]}  Nd5 {[%clk 0:00:23]} 34. Qd2 {[%clk 0:00:39]}  Kh7 {[%clk 0:00:22]} 35. Rd1 {[%clk 0:00:38]}  Qd6 {[%clk 0:00:20]} 36. h4 {[%clk 0:00:37]}  Bh6 {[%clk 0:00:19]} 37. Qe2 {[%clk 0:00:36]}  Bg7 {[%clk 0:00:19]} 38. g3 {[%clk 0:00:36]}  Nb4 {[%clk 0:00:19]} 39. Qf3 {[%clk 0:00:36]}  Rd8 {[%clk 0:00:19]} 40. Qxf7 {[%clk 0:00:35]}  Nc2 {[%clk 0:00:18]} 41. Bd3 {[%clk 0:00:32]}  e5 {[%clk 0:00:15]} 42. Bxc2 {[%clk 0:00:31]}  exd4 {[%clk 0:00:16]} 43. Bxd4 {[%clk 0:00:27]} 1-0


[Site "https://www.chess.com"]

[Event "Titled Tuesday Blitz April 4 Early 2023"]
[White "Gokerkan, Cem Kaan"]
[Black "Vafin, Ayrat"]
[WhiteFideId "6336760"]
[BlackFideId "4146530"]
[WhiteElo "2365"]
[BlackElo "2317"]
[Result "1/2-1/2"]
[Round "03"]
[TimeControl "180+2"]
[Date "2023.04.04"]
[WhiteClock "0:00:06"]
[BlackClock "0:00:45"]

1. e4 {[%clk 0:03:00]}  e5 {[%clk 0:02:59]} 2. Nf3 {[%clk 0:03:00]}  Nf6 {[%clk 0:03:00]} 3. d4 {[%clk 0:02:59]}  Nxe4 {[%clk 0:02:59]} 4. Nxe5 {[%clk 0:02:55]}  d6 {[%clk 0:02:57]} 5. Nf3 {[%clk 0:02:55]}  d5 {[%clk 0:02:57]} 6. Bd3 {[%clk 0:02:55]}  Nc6 {[%clk 0:02:56]} 7. O-O {[%clk 0:02:54]}  Be7 {[%clk 0:02:56]} 8. Re1 {[%clk 0:02:53]}  Bf5 {[%clk 0:02:56]} 9. Nbd2 {[%clk 0:02:43]}  Nxd2 {[%clk 0:02:56]} 10. Qxd2 {[%clk 0:02:44]}  Bxd3 {[%clk 0:02:56]} 11. Qxd3 {[%clk 0:02:45]}  O-O {[%clk 0:02:55]} 12. c3 {[%clk 0:02:45]}  Qd7 {[%clk 0:02:54]} 13. Bf4 {[%clk 0:02:44]}  Rae8 {[%clk 0:02:53]} 14. Qb5 {[%clk 0:02:37]}  b6 {[%clk 0:02:53]} 15. Re3 {[%clk 0:02:21]}  Bd8 {[%clk 0:02:52]} 16. Rae1 {[%clk 0:02:17]}  Rxe3 {[%clk 0:02:50]} 17. Rxe3 {[%clk 0:02:07]}  f6 {[%clk 0:02:50]} 18. h3 {[%clk 0:02:02]}  Rf7 {[%clk 0:02:43]} 19. Qe2 {[%clk 0:01:23]}  Re7 {[%clk 0:02:39]} 20. Ne1 {[%clk 0:01:19]}  Rxe3 {[%clk 0:02:32]} 21. Qxe3 {[%clk 0:01:19]}  Qe7 {[%clk 0:02:31]} 22. Qd2 {[%clk 0:01:19]}  Qe4 {[%clk 0:02:23]} 23. Nd3 {[%clk 0:01:16]}  a5 {[%clk 0:02:16]} 24. Bg3 {[%clk 0:01:08]}  Ne7 {[%clk 0:02:04]} 25. f3 {[%clk 0:01:06]}  Qf5 {[%clk 0:01:59]} 26. Qe2 {[%clk 0:01:03]}  Kf7 {[%clk 0:02:00]} 27. b3 {[%clk 0:00:55]}  Qe6 {[%clk 0:01:58]} 28. Qd2 {[%clk 0:00:51]}  Nf5 {[%clk 0:01:54]} 29. Bf2 {[%clk 0:00:51]}  g5 {[%clk 0:01:51]} 30. g4 {[%clk 0:00:51]}  Ne7 {[%clk 0:01:45]} 31. Kg2 {[%clk 0:00:49]}  Ng6 {[%clk 0:01:46]} 32. Bg3 {[%clk 0:00:50]}  h6 {[%clk 0:01:39]} 33. Qc2 {[%clk 0:00:46]}  Qe3 {[%clk 0:01:36]} 34. Nf2 {[%clk 0:00:40]}  Be7 {[%clk 0:01:19]} 35. Nd1 {[%clk 0:00:38]}  Qe6 {[%clk 0:01:18]} 36. Bxc7 {[%clk 0:00:34]}  Bd6 {[%clk 0:01:18]} 37. Bxd6 {[%clk 0:00:32]}  Qxd6 {[%clk 0:01:19]} 38. Ne3 {[%clk 0:00:13]}  Nh4+ {[%clk 0:01:08]} 39. Kf1 {[%clk 0:00:14]}  Qg3 {[%clk 0:00:47]} 40. Qh7+ {[%clk 0:00:14]}  Kf8 {[%clk 0:00:48]} 41. Qh8+ {[%clk 0:00:14]}  Kf7 {[%clk 0:00:48]} 42. Qh7+ {[%clk 0:00:13]}  Kf8 {[%clk 0:00:48]} 43. Qxh6+ {[%clk 0:00:14]}  Kf7 {[%clk 0:00:48]} 44. Qh7+ {[%clk 0:00:14]}  Kf8 {[%clk 0:00:49]} 45. Qh8+ {[%clk 0:00:11]}  Kf7 {[%clk 0:00:49]} 46. Qh7+ {[%clk 0:00:08]}  Kf8 {[%clk 0:00:48]} 47. Qh6+ {[%clk 0:00:05]}  Kf7 {[%clk 0:00:45]} 48. Qh7+ {[%clk 0:00:06]} 1/2-1/2


[Site "https://www.chess.com"]

[Event "Titled Tuesday Blitz April 4 Early 2023"]
[White "Samunenkov, Ihor"]
[Black "Qashashvili, Alexandre"]
[WhiteFideId "14187086"]
[BlackFideId "13600842"]
[WhiteElo "2457"]
[BlackElo "2405"]
[Result "1-0"]
[Round "03"]
[TimeControl "180+2"]
[Date "2023.04.04"]
[WhiteClock "0:00:32"]
[BlackClock "0:00:08"]

1. d4 {[%clk 0:03:00]}  c6 {[%clk 0:02:59]} 2. e4 {[%clk 0:02:59]}  d5 {[%clk 0:02:59]} 3. e5 {[%clk 0:03:00]}  Bf5 {[%clk 0:02:55]} 4. Nf3 {[%clk 0:02:59]}  e6 {[%clk 0:02:55]} 5. Be2 {[%clk 0:02:57]}  h6 {[%clk 0:02:46]} 6. O-O {[%clk 0:02:55]}  Nd7 {[%clk 0:02:43]} 7. a4 {[%clk 0:02:54]}  c5 {[%clk 0:02:42]} 8. a5 {[%clk 0:02:48]}  Ne7 {[%clk 0:02:38]} 9. a6 {[%clk 0:02:40]}  bxa6 {[%clk 0:02:31]} 10. c4 {[%clk 0:02:27]}  g5 {[%clk 0:02:22]} 11. dxc5 {[%clk 0:02:20]}  Nxc5 {[%clk 0:02:22]} 12. Nd4 {[%clk 0:01:53]}  Bg6 {[%clk 0:02:07]} 13. Nc3 {[%clk 0:01:49]}  Bg7 {[%clk 0:02:07]} 14. cxd5 {[%clk 0:01:18]}  Nxd5 {[%clk 0:01:58]} 15. Bf3 {[%clk 0:01:13]}  O-O {[%clk 0:01:48]} 16. Nxd5 {[%clk 0:01:12]}  exd5 {[%clk 0:01:46]} 17. Nc6 {[%clk 0:01:13]}  Qc7 {[%clk 0:01:38]} 18. Qxd5 {[%clk 0:01:10]}  Ne6 {[%clk 0:01:01]} 19. Rxa6 {[%clk 0:01:09]}  Rad8 {[%clk 0:00:29]} 20. Nxd8 {[%clk 0:01:08]}  Rxd8 {[%clk 0:00:28]} 21. Rd6 {[%clk 0:00:56]}  Rb8 {[%clk 0:00:18]} 22. Rd1 {[%clk 0:00:45]}  Nf4 {[%clk 0:00:15]} 23. Bxf4 {[%clk 0:00:45]}  gxf4 {[%clk 0:00:16]} 24. Rxg6 {[%clk 0:00:44]}  Rxb2 {[%clk 0:00:15]} 25. Rc6 {[%clk 0:00:40]}  Qb8 {[%clk 0:00:13]} 26. e6 {[%clk 0:00:39]}  fxe6 {[%clk 0:00:11]} 27. Qxe6+ {[%clk 0:00:37]}  Kh8 {[%clk 0:00:11]} 28. Rcd6 {[%clk 0:00:36]}  Rb1 {[%clk 0:00:12]} 29. h4 {[%clk 0:00:33]}  Rxd1+ {[%clk 0:00:11]} 30. Rxd1 {[%clk 0:00:32]}  Qf8 {[%clk 0:00:09]} 31. Be4 {[%clk 0:00:32]}  h5 {[%clk 0:00:09]} 32. Qg6 {[%clk 0:00:32]}  Kg8 {[%clk 0:00:08]} 33. Rd7 {[%clk 0:00:32]} 1-0


[Site "https://www.chess.com"]

[Event "Titled Tuesday Blitz April 4 Early 2023"]
[White "Drygalov, Andrey"]
[Black "Horak, Martin"]
[WhiteFideId "24171735"]
[BlackFideId "367095"]
[WhiteElo "2466"]
[BlackElo "2091"]
[Result "1-0"]
[Round "03"]
[TimeControl "180+2"]
[Date "2023.04.04"]
[WhiteClock "0:00:33"]
[BlackClock "0:00:01"]

1. e4 {[%clk 0:03:00]}  c5 {[%clk 0:02:58]} 2. Nf3 {[%clk 0:03:00]}  Nc6 {[%clk 0:02:58]} 3. Bb5 {[%clk 0:03:00]}  d6 {[%clk 0:02:54]} 4. O-O {[%clk 0:02:59]}  Bd7 {[%clk 0:02:51]} 5. Re1 {[%clk 0:03:00]}  a6 {[%clk 0:02:50]} 6. Bf1 {[%clk 0:03:00]}  Bg4 {[%clk 0:02:50]} 7. h3 {[%clk 0:03:00]}  Bh5 {[%clk 0:02:46]} 8. c3 {[%clk 0:02:59]}  Nf6 {[%clk 0:02:39]} 9. d4 {[%clk 0:02:57]}  cxd4 {[%clk 0:02:40]} 10. cxd4 {[%clk 0:02:58]}  d5 {[%clk 0:02:06]} 11. exd5 {[%clk 0:02:43]}  Nxd5 {[%clk 0:02:05]} 12. Nc3 {[%clk 0:02:31]}  e6 {[%clk 0:01:48]} 13. g4 {[%clk 0:02:30]}  Bg6 {[%clk 0:01:47]} 14. Qb3 {[%clk 0:02:31]}  Be7 {[%clk 0:00:54]} 15. Nxd5 {[%clk 0:02:03]}  Qxd5 {[%clk 0:00:48]} 16. Qxd5 {[%clk 0:02:03]}  exd5 {[%clk 0:00:47]} 17. Bg5 {[%clk 0:01:36]}  f6 {[%clk 0:00:45]} 18. Be3 {[%clk 0:01:35]}  Kd7 {[%clk 0:00:40]} 19. a3 {[%clk 0:01:34]}  Rhe8 {[%clk 0:00:37]} 20. Nh4 {[%clk 0:01:34]}  Bd6 {[%clk 0:00:23]} 21. Nxg6 {[%clk 0:01:33]}  hxg6 {[%clk 0:00:24]} 22. Bd3 {[%clk 0:01:33]}  g5 {[%clk 0:00:21]} 23. Kg2 {[%clk 0:01:34]}  Re7 {[%clk 0:00:19]} 24. Bf5+ {[%clk 0:01:24]}  Kc7 {[%clk 0:00:19]} 25. Bg6 {[%clk 0:01:11]}  Rd8 {[%clk 0:00:18]} 26. Rac1 {[%clk 0:01:10]}  Kb8 {[%clk 0:00:17]} 27. Bd3 {[%clk 0:01:11]}  Ka7 {[%clk 0:00:15]} 28. Be2 {[%clk 0:00:59]}  Rde8 {[%clk 0:00:16]} 29. Bf3 {[%clk 0:01:00]}  Bf4 {[%clk 0:00:11]} 30. Bxd5 {[%clk 0:00:54]}  Bxe3 {[%clk 0:00:11]} 31. fxe3 {[%clk 0:00:53]}  Rxe3 {[%clk 0:00:11]} 32. Rxe3 {[%clk 0:00:51]}  Rxe3 {[%clk 0:00:12]} 33. Bxc6 {[%clk 0:00:51]}  bxc6 {[%clk 0:00:12]} 34. Rxc6 {[%clk 0:00:52]}  Re2+ {[%clk 0:00:03]} 35. Kf3 {[%clk 0:00:52]}  Rxb2 {[%clk 0:00:04]} 36. Ke4 {[%clk 0:00:47]}  Kb7 {[%clk 0:00:03]} 37. Re6 {[%clk 0:00:43]}  Rb3 {[%clk 0:00:02]} 38. Re7+ {[%clk 0:00:38]}  Kc6 {[%clk 0:00:03]} 39. Rxg7 {[%clk 0:00:39]}  Rxh3 {[%clk 0:00:03]} 40. Rg6 {[%clk 0:00:38]}  Rxa3 {[%clk 0:00:02]} 41. Rxf6+ {[%clk 0:00:38]}  Kd7 {[%clk 0:00:03]} 42. Rg6 {[%clk 0:00:39]}  a5 {[%clk 0:00:02]} 43. Rxg5 {[%clk 0:00:39]}  Ra1 {[%clk 0:00:03]} 44. Kd5 {[%clk 0:00:37]}  a4 {[%clk 0:00:03]} 45. Rg7+ {[%clk 0:00:38]}  Ke8 {[%clk 0:00:03]} 46. Ra7 {[%clk 0:00:39]}  a3 {[%clk 0:00:03]} 47. Kd6 {[%clk 0:00:36]}  a2 {[%clk 0:00:03]} 48. d5 {[%clk 0:00:36]}  Rg1 {[%clk 0:00:01]} 49. Ra8+ {[%clk 0:00:33]}  Kf7 {[%clk 0:00:01]} 50. Rxa2 {[%clk 0:00:33]} 1-0


[Site "https://www.chess.com"]